[Event "Titled Tuesday Blitz June 21 Early 2022"]
[White "Flynn, Jacob"]
[Black "Amburgy, Ryan"]
[WhiteFideId "2509393"]
[BlackFideId "30924820"]
[WhiteElo "2359"]
[BlackElo "2737"]
[Result "1-0"]
[Round "02"]
[TimeControl "180+1"]
[Date "2022.06.22"]
[WhiteClock "0:00:11"]
[BlackClock "0:00:11"]

1. d4 {[%clk 0:03:00]}  Nf6 {[%clk 0:03:00]} 2. c4 {[%clk 0:02:58]}  e6 {[%clk 0:03:00]} 3. Nc3 {[%clk 0:02:57]}  Bb4 {[%clk 0:03:00]} 4. Qc2 {[%clk 0:02:58]}  d5 {[%clk 0:03:00]} 5. cxd5 {[%clk 0:02:58]}  exd5 {[%clk 0:03:00]} 6. Bg5 {[%clk 0:02:57]}  h6 {[%clk 0:03:00]} 7. Bh4 {[%clk 0:02:57]}  Nc6 {[%clk 0:03:00]} 8. e3 {[%clk 0:02:58]}  g5 {[%clk 0:03:00]} 9. Bg3 {[%clk 0:02:57]}  h5 {[%clk 0:03:00]} 10. Bb5 {[%clk 0:02:55]}  h4 {[%clk 0:02:56]} 11. Be5 {[%clk 0:02:55]}  O-O {[%clk 0:02:55]} 12. Bxc6 {[%clk 0:02:54]}  bxc6 {[%clk 0:02:56]} 13. h3 {[%clk 0:02:45]}  Ne4 {[%clk 0:02:52]} 14. Ne2 {[%clk 0:02:44]}  Bf5 {[%clk 0:02:48]} 15. Qb3 {[%clk 0:02:43]}  Rb8 {[%clk 0:02:46]} 16. Qa4 {[%clk 0:02:42]}  Bxc3+ {[%clk 0:02:34]} 17. Nxc3 {[%clk 0:02:33]}  Rxb2 {[%clk 0:02:28]} 18. Nxe4 {[%clk 0:02:33]}  Bxe4 {[%clk 0:02:28]} 19. O-O {[%clk 0:02:33]}  g4 {[%clk 0:02:01]} 20. hxg4 {[%clk 0:02:26]}  Qg5 {[%clk 0:02:01]} 21. Qd1 {[%clk 0:02:13]}  f5 {[%clk 0:01:53]} 22. Bf4 {[%clk 0:02:07]}  Qxg4 {[%clk 0:01:47]} 23. Qxg4+ {[%clk 0:02:07]}  fxg4 {[%clk 0:01:47]} 24. Rfc1 {[%clk 0:01:56]}  Rf6 {[%clk 0:01:32]} 25. Rc3 {[%clk 0:01:45]}  h3 {[%clk 0:01:10]} 26. gxh3 {[%clk 0:01:45]}  gxh3 {[%clk 0:01:10]} 27. Rb3 {[%clk 0:01:33]}  Rg6+ {[%clk 0:01:03]} 28. Kh2 {[%clk 0:01:28]}  Rxf2+ {[%clk 0:01:00]} 29. Kxh3 {[%clk 0:01:27]}  Bf5+ {[%clk 0:00:54]} 30. Kh4 {[%clk 0:01:27]}  Rf3 {[%clk 0:00:41]} 31. Rh1 {[%clk 0:01:18]}  Rg7 {[%clk 0:00:41]} 32. Bh6 {[%clk 0:01:16]}  Rg4+ {[%clk 0:00:33]} 33. Kh5 {[%clk 0:01:16]}  Rg2 {[%clk 0:00:24]} 34. Rb8+ {[%clk 0:01:12]}  Kh7 {[%clk 0:00:24]} 35. Bg5 {[%clk 0:00:55]}  Rfg3 {[%clk 0:00:18]} 36. Bf4 {[%clk 0:00:49]}  Rg7 {[%clk 0:00:11]} 37. Rb7 {[%clk 0:00:39]}  Be4 {[%clk 0:00:06]} 38. Rxc7 {[%clk 0:00:23]}  Rxc7 {[%clk 0:00:06]} 39. Bxc7 {[%clk 0:00:23]}  Rg7 {[%clk 0:00:07]} 40. Rh4 {[%clk 0:00:10]}  Rxc7 {[%clk 0:00:06]} 41. Kg5+ {[%clk 0:00:11]}  Kg7 {[%clk 0:00:07]} 42. Kf4 {[%clk 0:00:12]}  Rf7+ {[%clk 0:00:07]} 43. Ke5 {[%clk 0:00:13]}  Rf5+ {[%clk 0:00:06]} 44. Kd6 {[%clk 0:00:13]}  Rf6+ {[%clk 0:00:06]} 45. Kc5 {[%clk 0:00:13]}  Kf7 {[%clk 0:00:07]} 46. Rh8 {[%clk 0:00:13]}  Bh7 {[%clk 0:00:07]} 47. Rxh7+ {[%clk 0:00:13]}  Ke6 {[%clk 0:00:08]} 48. Rxa7 {[%clk 0:00:13]}  Kf5 {[%clk 0:00:08]} 49. Re7 {[%clk 0:00:12]}  Kg4 {[%clk 0:00:08]} 50. a4 {[%clk 0:00:12]}  Kf3 {[%clk 0:00:09]} 51. a5 {[%clk 0:00:11]}  Rf8 {[%clk 0:00:08]} 52. a6 {[%clk 0:00:11]}  Ra8 {[%clk 0:00:08]} 53. a7 {[%clk 0:00:10]}  Ke2 {[%clk 0:00:08]} 54. Kxc6 {[%clk 0:00:10]}  Kd3 {[%clk 0:00:08]} 55. Kb7 {[%clk 0:00:10]}  Rh8 {[%clk 0:00:09]} 56. a8=Q {[%clk 0:00:10]}  Rxa8 {[%clk 0:00:09]} 57. Kxa8 {[%clk 0:00:11]}  Kc4 {[%clk 0:00:10]} 58. Kb7 {[%clk 0:00:11]}  Kb5 {[%clk 0:00:11]} 59. Kc7 {[%clk 0:00:11]} 1-0


[Site "https://www.chess.com"]

[Event "Titled Tuesday Blitz June 21 Early 2022"]
[White "Gardezi, Arsal"]
[Black "Lucas, Arthur"]
[WhiteFideId "30949521"]
[BlackFideId "26093073"]
[WhiteElo "1781"]
[BlackElo "2129"]
[Result "0-1"]
[Round "02"]
[TimeControl "180+1"]
[Date "2022.06.22"]
[WhiteClock "0:00:18"]
[BlackClock "0:01:04"]

1. Nf3 {[%clk 0:03:00]}  g6 {[%clk 0:02:59]} 2. g3 {[%clk 0:02:59]}  Bg7 {[%clk 0:03:00]} 3. Bg2 {[%clk 0:02:59]}  f5 {[%clk 0:03:00]} 4. O-O {[%clk 0:02:58]}  Nf6 {[%clk 0:03:01]} 5. c4 {[%clk 0:02:57]}  O-O {[%clk 0:03:01]} 6. Nc3 {[%clk 0:02:56]}  d6 {[%clk 0:03:02]} 7. d4 {[%clk 0:02:56]}  Nc6 {[%clk 0:02:58]} 8. Bg5 {[%clk 0:02:29]}  e5 {[%clk 0:02:33]} 9. dxe5 {[%clk 0:02:05]}  dxe5 {[%clk 0:02:34]} 10. Qxd8 {[%clk 0:02:05]}  Rxd8 {[%clk 0:02:03]} 11. Nd5 {[%clk 0:02:04]}  Rxd5 {[%clk 0:01:59]} 12. cxd5 {[%clk 0:02:01]}  Nxd5 {[%clk 0:02:00]} 13. Nxe5 {[%clk 0:01:56]}  Bxe5 {[%clk 0:01:56]} 14. Bxd5+ {[%clk 0:01:53]}  Kg7 {[%clk 0:01:57]} 15. Rac1 {[%clk 0:01:36]}  Nd4 {[%clk 0:01:46]} 16. Rfe1 {[%clk 0:01:31]}  c6 {[%clk 0:01:43]} 17. Bg2 {[%clk 0:01:29]}  Ne6 {[%clk 0:01:42]} 18. Bd2 {[%clk 0:01:22]}  Bxb2 {[%clk 0:01:42]} 19. Rb1 {[%clk 0:01:18]}  Bf6 {[%clk 0:01:33]} 20. e4 {[%clk 0:01:18]}  fxe4 {[%clk 0:01:30]} 21. Bxe4 {[%clk 0:01:15]}  Nc5 {[%clk 0:01:29]} 22. Bg2 {[%clk 0:01:12]}  Bf5 {[%clk 0:01:27]} 23. Rb4 {[%clk 0:00:50]}  a5 {[%clk 0:01:16]} 24. Rc4 {[%clk 0:00:44]}  Nd3 {[%clk 0:01:13]} 25. Rb1 {[%clk 0:00:42]}  Nb2 {[%clk 0:01:07]} 26. Rbc1 {[%clk 0:00:30]}  Nxc4 {[%clk 0:01:06]} 27. Rxc4 {[%clk 0:00:30]}  Rd8 {[%clk 0:01:06]} 28. Be1 {[%clk 0:00:19]}  Rd1 {[%clk 0:01:05]} 29. Bf1 {[%clk 0:00:18]}  Rxe1 {[%clk 0:01:04]} 0-1


[Site "https://www.chess.com"]

[Event "Titled Tuesday Blitz June 21 Early 2022"]
[White "Gatterer, Florian"]
[Black "Di Nicolantonio, Lucas"]
[WhiteFideId "811688"]
[BlackFideId "680460"]
[WhiteElo "2218"]
[BlackElo "2381"]
[Result "0-1"]
[Round "02"]
[TimeControl "180+1"]
[Date "2022.06.22"]
[WhiteClock "0:00:13"]
[BlackClock "0:00:23"]

1. f4 {[%clk 0:03:00]}  c5 {[%clk 0:02:53]} 2. Nf3 {[%clk 0:02:59]}  Nc6 {[%clk 0:02:53]} 3. g3 {[%clk 0:03:00]}  g6 {[%clk 0:02:51]} 4. Bg2 {[%clk 0:03:00]}  Bg7 {[%clk 0:02:51]} 5. O-O {[%clk 0:02:59]}  d6 {[%clk 0:02:50]} 6. e4 {[%clk 0:02:59]}  Nf6 {[%clk 0:02:47]} 7. d3 {[%clk 0:02:58]}  O-O {[%clk 0:02:48]} 8. c3 {[%clk 0:02:59]}  Rb8 {[%clk 0:02:48]} 9. a4 {[%clk 0:02:57]}  a6 {[%clk 0:02:48]} 10. Kh1 {[%clk 0:02:54]}  b5 {[%clk 0:02:49]} 11. axb5 {[%clk 0:02:54]}  axb5 {[%clk 0:02:50]} 12. Be3 {[%clk 0:02:54]}  b4 {[%clk 0:02:49]} 13. Bg1 {[%clk 0:02:41]}  Bb7 {[%clk 0:02:48]} 14. Nbd2 {[%clk 0:02:38]}  bxc3 {[%clk 0:02:46]} 15. bxc3 {[%clk 0:02:38]}  Nd7 {[%clk 0:02:44]} 16. Qc2 {[%clk 0:02:36]}  Qc7 {[%clk 0:02:42]} 17. d4 {[%clk 0:02:31]}  cxd4 {[%clk 0:02:37]} 18. cxd4 {[%clk 0:02:31]}  Rfc8 {[%clk 0:02:36]} 19. Rfc1 {[%clk 0:02:30]}  Qd8 {[%clk 0:02:33]} 20. Qb2 {[%clk 0:02:06]}  Ba8 {[%clk 0:02:13]} 21. Qa3 {[%clk 0:02:00]}  Nb4 {[%clk 0:02:13]} 22. Rxc8 {[%clk 0:01:55]}  Qxc8 {[%clk 0:02:14]} 23. Rc1 {[%clk 0:01:53]}  Qd8 {[%clk 0:02:08]} 24. Rb1 {[%clk 0:01:39]}  Nc6 {[%clk 0:01:59]} 25. Rxb8 {[%clk 0:01:35]}  Qxb8 {[%clk 0:01:59]} 26. Qb3 {[%clk 0:01:35]}  Qc7 {[%clk 0:01:39]} 27. e5 {[%clk 0:01:30]}  Na5 {[%clk 0:01:37]} 28. Qb4 {[%clk 0:01:15]}  Bd5 {[%clk 0:01:32]} 29. h4 {[%clk 0:01:14]}  h6 {[%clk 0:01:29]} 30. Kh2 {[%clk 0:01:14]}  Nc6 {[%clk 0:01:23]} 31. Qb5 {[%clk 0:01:08]}  e6 {[%clk 0:01:23]} 32. Be3 {[%clk 0:01:00]}  Ne7 {[%clk 0:01:21]} 33. Qb4 {[%clk 0:00:52]}  Nf5 {[%clk 0:01:18]} 34. Bf2 {[%clk 0:00:48]}  Bf8 {[%clk 0:01:18]} 35. Qa4 {[%clk 0:00:42]}  dxe5 {[%clk 0:01:14]} 36. dxe5 {[%clk 0:00:40]}  Nc5 {[%clk 0:01:14]} 37. Qc2 {[%clk 0:00:36]}  h5 {[%clk 0:00:52]} 38. Nd4 {[%clk 0:00:34]}  Nxd4 {[%clk 0:00:45]} 39. Bxd4 {[%clk 0:00:30]}  Bxg2 {[%clk 0:00:45]} 40. Kxg2 {[%clk 0:00:30]}  Qb7+ {[%clk 0:00:45]} 41. Kh2 {[%clk 0:00:30]}  Qd5 {[%clk 0:00:45]} 42. Qc4 {[%clk 0:00:24]}  Qd7 {[%clk 0:00:43]} 43. Nf3 {[%clk 0:00:19]}  Ne4 {[%clk 0:00:40]} 44. Qe2 {[%clk 0:00:17]}  Qd5 {[%clk 0:00:40]} 45. Qd3 {[%clk 0:00:14]}  Bc5 {[%clk 0:00:36]} 46. Qe3 {[%clk 0:00:12]}  Be7 {[%clk 0:00:34]} 47. Qe2 {[%clk 0:00:10]}  Kg7 {[%clk 0:00:31]} 48. Qg2 {[%clk 0:00:10]}  Bb4 {[%clk 0:00:24]} 49. Bg1 {[%clk 0:00:10]}  Qd3 {[%clk 0:00:23]} 50. Ng5 {[%clk 0:00:08]}  Nd2 {[%clk 0:00:20]} 51. Qf2 {[%clk 0:00:06]}  Bc3 {[%clk 0:00:17]} 52. Kg2 {[%clk 0:00:06]}  Qd5+ {[%clk 0:00:16]} 53. Kh3 {[%clk 0:00:05]}  Qh1+ {[%clk 0:00:15]} 54. Bh2 {[%clk 0:00:05]}  Nf1 {[%clk 0:00:13]} 55. Qg2 {[%clk 0:00:05]}  Qxg2+ {[%clk 0:00:08]} 56. Kxg2 {[%clk 0:00:06]}  Ne3+ {[%clk 0:00:09]} 57. Kf3 {[%clk 0:00:06]}  Ng4 {[%clk 0:00:09]} 58. Bg1 {[%clk 0:00:05]}  Bb2 {[%clk 0:00:09]} 59. Be3 {[%clk 0:00:05]}  Ba3 {[%clk 0:00:09]} 60. Ne4 {[%clk 0:00:05]}  Be7 {[%clk 0:00:09]} 61. Ng5 {[%clk 0:00:05]}  Bxg5 {[%clk 0:00:08]} 62. hxg5 {[%clk 0:00:04]}  Kf8 {[%clk 0:00:09]} 63. Bg1 {[%clk 0:00:05]}  Ke8 {[%clk 0:00:10]} 64. Ke4 {[%clk 0:00:05]}  Kd7 {[%clk 0:00:10]} 65. Bc5 {[%clk 0:00:05]}  Kc6 {[%clk 0:00:11]} 66. Bf8 {[%clk 0:00:05]}  Kb5 {[%clk 0:00:11]} 67. Be7 {[%clk 0:00:05]}  Kc4 {[%clk 0:00:12]} 68. Kf3 {[%clk 0:00:05]}  Kd3 {[%clk 0:00:12]} 69. Bf6 {[%clk 0:00:05]}  Nh2+ {[%clk 0:00:12]} 70. Kg2 {[%clk 0:00:05]}  Ng4 {[%clk 0:00:13]} 71. Kf3 {[%clk 0:00:05]}  Kd2 {[%clk 0:00:14]} 72. Be7 {[%clk 0:00:05]}  Ke1 {[%clk 0:00:14]} 73. Kg2 {[%clk 0:00:05]}  Ke2 {[%clk 0:00:15]} 74. Kh3 {[%clk 0:00:05]}  Kf3 {[%clk 0:00:15]} 75. Bf6 {[%clk 0:00:05]}  Nf2+ {[%clk 0:00:14]} 76. Kh2 {[%clk 0:00:05]}  Ne4 {[%clk 0:00:13]} 77. f5 {[%clk 0:00:03]}  gxf5 {[%clk 0:00:12]} 78. Kh3 {[%clk 0:00:04]}  Nxg3 {[%clk 0:00:12]} 79. Kh4 {[%clk 0:00:04]}  f4 {[%clk 0:00:10]} 80. Be7 {[%clk 0:00:04]}  Nf5+ {[%clk 0:00:11]} 81. Kxh5 {[%clk 0:00:04]}  Nxe7 {[%clk 0:00:11]} 82. Kh6 {[%clk 0:00:03]}  Ng6 {[%clk 0:00:11]} 83. Kg7 {[%clk 0:00:03]}  Nxe5 {[%clk 0:00:11]} 84. Kf6 {[%clk 0:00:04]}  Ke4 {[%clk 0:00:12]} 85. Ke7 {[%clk 0:00:04]}  f3 {[%clk 0:00:12]} 86. g6 {[%clk 0:00:04]}  Nxg6+ {[%clk 0:00:12]} 87. Kd6 {[%clk 0:00:05]}  Nf4 {[%clk 0:00:13]} 88. Ke7 {[%clk 0:00:05]}  f2 {[%clk 0:00:14]} 89. Ke8 {[%clk 0:00:06]}  f1=Q {[%clk 0:00:14]} 90. Ke7 {[%clk 0:00:07]}  f5 {[%clk 0:00:15]} 91. Kf8 {[%clk 0:00:07]}  e5 {[%clk 0:00:16]} 92. Ke7 {[%clk 0:00:08]}  Ne2 {[%clk 0:00:16]} 93. Kf8 {[%clk 0:00:09]}  f4 {[%clk 0:00:17]} 94. Kf7 {[%clk 0:00:09]}  f3 {[%clk 0:00:18]} 95. Ke7 {[%clk 0:00:10]}  f2 {[%clk 0:00:19]} 96. Ke8 {[%clk 0:00:11]}  Kf3 {[%clk 0:00:20]} 97. Ke7 {[%clk 0:00:11]}  e4 {[%clk 0:00:21]} 98. Ke8 {[%clk 0:00:12]}  e3 {[%clk 0:00:22]} 99. Kf7 {[%clk 0:00:12]}  Qd1 {[%clk 0:00:22]} 100. Kf8 {[%clk 0:00:13]}  f1=Q {[%clk 0:00:23]} 101. Kg7 {[%clk 0:00:13]}  Qd7+ {[%clk 0:00:23]} 102. Kf8 {[%clk 0:00:14]}  Qd8+ {[%clk 0:00:23]} 103. Kg7 {[%clk 0:00:14]}  Qg2+ {[%clk 0:00:23]} 104. Kh7 {[%clk 0:00:14]}  Qh3+ {[%clk 0:00:23]} 105. Kg7 {[%clk 0:00:13]}  Qg4+ {[%clk 0:00:22]} 106. Kh7 {[%clk 0:00:13]}  Qdg8+ {[%clk 0:00:22]} 107. Kh6 {[%clk 0:00:13]}  Q8g6# {[%clk 0:00:23]} 0-1


[Site "https://www.chess.com"]

[Event "Titled Tuesday Blitz June 21 Early 2022"]
[White "Glavina, Pablo"]
[Black "Dushyant Sharma"]
[WhiteFideId "100234"]
[BlackFideId "25065130"]
[WhiteElo "2369"]
[BlackElo "2105"]
[Result "0-1"]
[Round "02"]
[TimeControl "180+1"]
[Date "2022.06.22"]
[WhiteClock "0:00:14"]
[BlackClock "0:01:34"]

1. e4 {[%clk 0:03:00]}  d5 {[%clk 0:03:00]} 2. exd5 {[%clk 0:03:00]}  Nf6 {[%clk 0:03:01]} 3. c4 {[%clk 0:02:57]}  Bg4 {[%clk 0:03:01]} 4. Be2 {[%clk 0:02:53]}  Bxe2 {[%clk 0:03:02]} 5. Qxe2 {[%clk 0:02:52]}  c6 {[%clk 0:03:03]} 6. Nc3 {[%clk 0:02:42]}  cxd5 {[%clk 0:03:02]} 7. cxd5 {[%clk 0:02:43]}  Nbd7 {[%clk 0:03:00]} 8. Nf3 {[%clk 0:02:41]}  g6 {[%clk 0:03:00]} 9. O-O {[%clk 0:02:39]}  Bg7 {[%clk 0:03:01]} 10. d6 {[%clk 0:02:33]}  e6 {[%clk 0:02:59]} 11. d4 {[%clk 0:02:30]}  O-O {[%clk 0:02:59]} 12. Bg5 {[%clk 0:02:26]}  Qb6 {[%clk 0:02:58]} 13. Bf4 {[%clk 0:02:18]}  Rfe8 {[%clk 0:02:56]} 14. Ne5 {[%clk 0:02:03]}  Qxd4 {[%clk 0:02:46]} 15. Nxd7 {[%clk 0:02:01]}  Nxd7 {[%clk 0:02:47]} 16. Bg3 {[%clk 0:01:59]}  e5 {[%clk 0:02:44]} 17. Rfd1 {[%clk 0:01:59]}  Qc5 {[%clk 0:02:38]} 18. Rac1 {[%clk 0:01:55]}  Rac8 {[%clk 0:02:36]} 19. Qd2 {[%clk 0:01:37]}  Qa5 {[%clk 0:02:32]} 20. Qd5 {[%clk 0:01:06]}  Qa6 {[%clk 0:02:18]} 21. Qb5 {[%clk 0:00:40]}  Qxb5 {[%clk 0:01:58]} 22. Nxb5 {[%clk 0:00:41]}  a6 {[%clk 0:01:59]} 23. Nc7 {[%clk 0:00:36]}  Red8 {[%clk 0:01:59]} 24. Nd5 {[%clk 0:00:26]}  Rxc1 {[%clk 0:01:52]} 25. Rxc1 {[%clk 0:00:27]}  Bf8 {[%clk 0:01:53]} 26. Ne7+ {[%clk 0:00:24]}  Bxe7 {[%clk 0:01:48]} 27. dxe7 {[%clk 0:00:25]}  Re8 {[%clk 0:01:49]} 28. Bh4 {[%clk 0:00:23]}  f6 {[%clk 0:01:46]} 29. Rd1 {[%clk 0:00:22]}  Rxe7 {[%clk 0:01:46]} 30. Bg3 {[%clk 0:00:21]}  Kf7 {[%clk 0:01:43]} 31. f4 {[%clk 0:00:21]}  e4 {[%clk 0:01:42]} 32. Re1 {[%clk 0:00:20]}  f5 {[%clk 0:01:42]} 33. Kf2 {[%clk 0:00:21]}  Nb6 {[%clk 0:01:41]} 34. Rc1 {[%clk 0:00:19]}  Rd7 {[%clk 0:01:39]} 35. Ke3 {[%clk 0:00:19]}  Rd3+ {[%clk 0:01:38]} 36. Ke2 {[%clk 0:00:18]}  Nd5 {[%clk 0:01:38]} 37. Rd1 {[%clk 0:00:17]}  Rxd1 {[%clk 0:01:37]} 38. Kxd1 {[%clk 0:00:18]}  Ne3+ {[%clk 0:01:38]} 39. Ke2 {[%clk 0:00:14]}  Nc4 {[%clk 0:01:32]} 40. b3 {[%clk 0:00:14]}  Nd6 {[%clk 0:01:29]} 41. Bf2 {[%clk 0:00:14]}  Ke6 {[%clk 0:01:28]} 42. Bd4 {[%clk 0:00:14]}  Kd5 {[%clk 0:01:29]} 43. Be5 {[%clk 0:00:14]}  Nb5 {[%clk 0:01:29]} 44. Kd2 {[%clk 0:00:12]}  Na7 {[%clk 0:01:29]} 45. Kc3 {[%clk 0:00:11]}  Nc6 {[%clk 0:01:30]} 46. Bg7 {[%clk 0:00:10]}  b5 {[%clk 0:01:30]} 47. Kd2 {[%clk 0:00:08]}  Nd4 {[%clk 0:01:29]} 48. Ke3 {[%clk 0:00:05]}  Nc2+ {[%clk 0:01:28]} 49. Kd2 {[%clk 0:00:05]}  Nb4 {[%clk 0:01:29]} 50. Ke3 {[%clk 0:00:05]}  Nxa2 {[%clk 0:01:29]} 51. Kd2 {[%clk 0:00:03]}  b4 {[%clk 0:01:29]} 52. Kc2 {[%clk 0:00:04]}  Nc3 {[%clk 0:01:29]} 53. Be5 {[%clk 0:00:05]}  a5 {[%clk 0:01:29]} 54. Bxc3 {[%clk 0:00:05]}  bxc3 {[%clk 0:01:30]} 55. Kxc3 {[%clk 0:00:06]}  Kc5 {[%clk 0:01:29]} 56. Kd2 {[%clk 0:00:07]}  Kb4 {[%clk 0:01:28]} 57. Kc2 {[%clk 0:00:08]}  e3 {[%clk 0:01:28]} 58. Kd3 {[%clk 0:00:08]}  Kxb3 {[%clk 0:01:28]} 59. Kxe3 {[%clk 0:00:09]}  a4 {[%clk 0:01:29]} 60. Kd4 {[%clk 0:00:09]}  a3 {[%clk 0:01:29]} 61. Ke5 {[%clk 0:00:10]}  a2 {[%clk 0:01:30]} 62. Kf6 {[%clk 0:00:11]}  a1=Q+ {[%clk 0:01:31]} 63. Kf7 {[%clk 0:00:11]}  Qd4 {[%clk 0:01:30]} 64. Kg8 {[%clk 0:00:12]}  Qxf4 {[%clk 0:01:31]} 65. Kxh7 {[%clk 0:00:13]}  Qxh2+ {[%clk 0:01:31]} 66. Kxg6 {[%clk 0:00:14]}  f4 {[%clk 0:01:32]} 67. Kf5 {[%clk 0:00:14]}  Qg3 {[%clk 0:01:32]} 68. Ke4 {[%clk 0:00:14]}  Kc3 {[%clk 0:01:33]} 69. Kf5 {[%clk 0:00:14]}  Kd3 {[%clk 0:01:33]} 70. Ke5 {[%clk 0:00:14]}  f3+ {[%clk 0:01:34]} 0-1


[Site "https://www.chess.com"]

[Event "Titled Tuesday Blitz June 21 Early 2022"]
[White "Gracia Alvarez, Gerardo Antonio"]
[Black "Tan, Zhongyi"]
[WhiteFideId "5109124"]
[BlackFideId "8603642"]
[WhiteElo "2559"]
[BlackElo "2772"]
[Result "0-1"]
[Round "02"]
[TimeControl "180+1"]
[Date "2022.06.22"]
[WhiteClock "0:00:12"]
[BlackClock "0:01:26"]

1. e4 {[%clk 0:03:00]}  e5 {[%clk 0:02:57]} 2. Nf3 {[%clk 0:03:00]}  Nf6 {[%clk 0:02:57]} 3. Nxe5 {[%clk 0:02:59]}  d6 {[%clk 0:02:57]} 4. Nf3 {[%clk 0:02:58]}  Nxe4 {[%clk 0:02:57]} 5. Nc3 {[%clk 0:02:59]}  Nxc3 {[%clk 0:02:57]} 6. dxc3 {[%clk 0:02:59]}  Be7 {[%clk 0:02:58]} 7. Bf4 {[%clk 0:02:54]}  Nd7 {[%clk 0:02:54]} 8. Qd2 {[%clk 0:02:52]}  O-O {[%clk 0:02:52]} 9. O-O-O {[%clk 0:02:50]}  Nf6 {[%clk 0:02:50]} 10. h4 {[%clk 0:02:39]}  d5 {[%clk 0:02:44]} 11. Bd3 {[%clk 0:02:22]}  c5 {[%clk 0:02:38]} 12. c4 {[%clk 0:01:56]}  d4 {[%clk 0:02:38]} 13. h5 {[%clk 0:01:53]}  b5 {[%clk 0:02:22]} 14. h6 {[%clk 0:01:44]}  g6 {[%clk 0:02:21]} 15. Ne5 {[%clk 0:01:32]}  Bb7 {[%clk 0:02:09]} 16. cxb5 {[%clk 0:01:28]}  a6 {[%clk 0:02:04]} 17. Nc6 {[%clk 0:01:21]}  Bxc6 {[%clk 0:01:57]} 18. bxc6 {[%clk 0:01:21]}  Qd5 {[%clk 0:01:57]} 19. b3 {[%clk 0:00:56]}  Qxc6 {[%clk 0:01:54]} 20. Rde1 {[%clk 0:00:54]}  Rfe8 {[%clk 0:01:46]} 21. g4 {[%clk 0:00:43]}  Nd5 {[%clk 0:01:31]} 22. Be4 {[%clk 0:00:42]}  Rad8 {[%clk 0:01:30]} 23. Bxd5 {[%clk 0:00:38]}  Qxd5 {[%clk 0:01:29]} 24. Rhg1 {[%clk 0:00:13]}  c4 {[%clk 0:01:28]} 25. Re5 {[%clk 0:00:12]}  Ba3+ {[%clk 0:01:26]} 0-1


[Site "https://www.chess.com"]

[Event "Titled Tuesday Blitz June 21 Early 2022"]
[White "Gubajdullin, Alexei"]
[Black "Steinberg, Nitzan"]
[WhiteFideId "4141202"]
[BlackFideId "2801795"]
[WhiteElo "2583"]
[BlackElo "2820"]
[Result "0-1"]
[Round "02"]
[TimeControl "180+1"]
[Date "2022.06.22"]
[WhiteClock "0:00:40"]
[BlackClock "0:00:05"]

1. d4 {[%clk 0:02:56]}  d5 {[%clk 0:02:58]} 2. Nf3 {[%clk 0:02:54]}  Nf6 {[%clk 0:02:57]} 3. Bf4 {[%clk 0:02:53]}  e6 {[%clk 0:02:57]} 4. e3 {[%clk 0:02:53]}  Bd6 {[%clk 0:02:57]} 5. Ne5 {[%clk 0:02:53]}  c5 {[%clk 0:02:50]} 6. Nd2 {[%clk 0:02:52]}  O-O {[%clk 0:02:50]} 7. c3 {[%clk 0:02:50]}  Nc6 {[%clk 0:02:47]} 8. Bg3 {[%clk 0:02:49]}  Qc7 {[%clk 0:02:41]} 9. f4 {[%clk 0:02:49]}  Ne4 {[%clk 0:02:39]} 10. Nxe4 {[%clk 0:02:45]}  dxe4 {[%clk 0:02:39]} 11. Nc4 {[%clk 0:02:44]}  cxd4 {[%clk 0:02:23]} 12. Nxd6 {[%clk 0:02:43]}  Qxd6 {[%clk 0:02:23]} 13. exd4 {[%clk 0:02:42]}  f5 {[%clk 0:02:17]} 14. Bc4 {[%clk 0:02:38]}  Ne7 {[%clk 0:02:14]} 15. O-O {[%clk 0:02:35]}  Bd7 {[%clk 0:02:13]} 16. Bb3 {[%clk 0:02:33]}  b5 {[%clk 0:02:12]} 17. a4 {[%clk 0:02:32]}  bxa4 {[%clk 0:02:10]} 18. Bxa4 {[%clk 0:02:32]}  Bxa4 {[%clk 0:02:08]} 19. Qxa4 {[%clk 0:02:32]}  a5 {[%clk 0:02:01]} 20. Bh4 {[%clk 0:02:26]}  Nd5 {[%clk 0:01:59]} 21. Ra2 {[%clk 0:02:18]}  Rfb8 {[%clk 0:01:53]} 22. Bg3 {[%clk 0:02:17]}  Qa6 {[%clk 0:01:43]} 23. Rfa1 {[%clk 0:02:11]}  Qe2 {[%clk 0:01:26]} 24. Qd1 {[%clk 0:02:09]}  Qxd1+ {[%clk 0:01:18]} 25. Rxd1 {[%clk 0:02:08]}  a4 {[%clk 0:01:19]} 26. Be1 {[%clk 0:01:55]}  Nxf4 {[%clk 0:01:16]} 27. Rda1 {[%clk 0:01:47]}  Nd3 {[%clk 0:01:15]} 28. b4 {[%clk 0:01:47]}  Rc8 {[%clk 0:00:55]} 29. Bd2 {[%clk 0:01:44]}  f4 {[%clk 0:00:55]} 30. Kf1 {[%clk 0:01:40]}  g5 {[%clk 0:00:48]} 31. Ke2 {[%clk 0:01:37]}  e5 {[%clk 0:00:44]} 32. dxe5 {[%clk 0:01:34]}  Nxe5 {[%clk 0:00:42]} 33. Rxa4 {[%clk 0:01:34]}  Rxa4 {[%clk 0:00:43]} 34. Rxa4 {[%clk 0:01:34]}  Kf7 {[%clk 0:00:36]} 35. Ra5 {[%clk 0:01:31]}  Ke6 {[%clk 0:00:33]} 36. Ra6+ {[%clk 0:01:26]}  Kf5 {[%clk 0:00:31]} 37. b5 {[%clk 0:01:15]}  e3 {[%clk 0:00:31]} 38. Be1 {[%clk 0:01:13]}  Ke4 {[%clk 0:00:24]} 39. b6 {[%clk 0:01:10]}  g4 {[%clk 0:00:16]} 40. Ra4+ {[%clk 0:01:10]}  Kf5 {[%clk 0:00:12]} 41. b7 {[%clk 0:01:09]}  Rb8 {[%clk 0:00:11]} 42. Rb4 {[%clk 0:01:09]}  h5 {[%clk 0:00:04]} 43. g3 {[%clk 0:01:08]}  f3+ {[%clk 0:00:03]} 44. Kxe3 {[%clk 0:01:08]}  Nc6 {[%clk 0:00:04]} 45. Rb6 {[%clk 0:01:06]}  Ne7 {[%clk 0:00:02]} 46. c4 {[%clk 0:01:02]}  Re8 {[%clk 0:00:02]} 47. b8=Q {[%clk 0:00:51]}  Nd5+ {[%clk 0:00:02]} 48. Kf2 {[%clk 0:00:51]}  Re2+ {[%clk 0:00:02]} 49. Kf1 {[%clk 0:00:50]}  Ne3+ {[%clk 0:00:02]} 50. Kg1 {[%clk 0:00:40]}  Rxe1+ {[%clk 0:00:03]} 51. Kf2 {[%clk 0:00:40]}  Re2+ {[%clk 0:00:04]} 52. Kg1 {[%clk 0:00:40]}  f2+ {[%clk 0:00:05]} 0-1


[Site "https://www.chess.com"]

[Event "Titled Tuesday Blitz June 21 Early 2022"]
[White "Hartikainen, Jarmo"]
[Black "Vusatiuk, Vladimir"]
[WhiteFideId "503134"]
[BlackFideId "14118610"]
[WhiteElo "2154"]
[BlackElo "2157"]
[Result "0-1"]
[Round "02"]
[TimeControl "180+1"]
[Date "2022.06.22"]
[WhiteClock "0:01:34"]
[BlackClock "0:01:59"]

1. e4 {[%clk 0:03:00]}  e6 {[%clk 0:03:00]} 2. d4 {[%clk 0:03:00]}  d5 {[%clk 0:03:00]} 3. Nc3 {[%clk 0:03:00]}  Nf6 {[%clk 0:02:59]} 4. Bg5 {[%clk 0:03:00]}  dxe4 {[%clk 0:02:56]} 5. Nxe4 {[%clk 0:03:00]}  Be7 {[%clk 0:02:56]} 6. Bxf6 {[%clk 0:03:00]}  gxf6 {[%clk 0:02:56]} 7. Nf3 {[%clk 0:02:59]}  f5 {[%clk 0:02:56]} 8. Ng3 {[%clk 0:02:58]}  h5 {[%clk 0:02:35]} 9. h4 {[%clk 0:02:57]}  c5 {[%clk 0:02:27]} 10. Be2 {[%clk 0:02:56]}  Nc6 {[%clk 0:02:24]} 11. c3 {[%clk 0:02:47]}  cxd4 {[%clk 0:02:22]} 12. Nxd4 {[%clk 0:02:45]}  Nxd4 {[%clk 0:02:22]} 13. Qxd4 {[%clk 0:02:39]}  Qxd4 {[%clk 0:02:22]} 14. cxd4 {[%clk 0:02:39]}  Bb4+ {[%clk 0:02:22]} 15. Kf1 {[%clk 0:02:39]}  Ke7 {[%clk 0:02:13]} 16. Nxh5 {[%clk 0:02:37]}  Bd6 {[%clk 0:02:09]} 17. Rh3 {[%clk 0:02:26]}  Bd7 {[%clk 0:02:05]} 18. Rc1 {[%clk 0:02:18]}  Bc6 {[%clk 0:02:03]} 19. a3 {[%clk 0:01:44]}  Rag8 {[%clk 0:02:01]} 20. Ng3 {[%clk 0:01:35]}  Bxg3 {[%clk 0:02:00]} 21. Rxg3 {[%clk 0:01:35]}  Rxh4 {[%clk 0:01:59]} 22. Rxg8 {[%clk 0:01:34]}  Rh1# {[%clk 0:01:59]} 0-1


[Site "https://www.chess.com"]